bitfinex-derivatives/quotes_ETHF0:USTF0_20250417
["timestamp","ask_amount","ask_price","bid_price","bid_amount"]
[1744865081013,10.45909,1585.8,1585.7,1.74890001]
[1744865082716,12.04819,1585.8,1585.7,1.74890001]
[1744865083124,12.04819,1585.8,1585.7,1e-08]
[1744865088219,22.54219016,1585.8,1585.7,1e-08]
[1744865089829,23.41889016,1585.8,1585.7,1e-08]
[1744865091129,21.82979016,1585.8,1585.7,1.67820001]
[1744865091328,23.42469016,1585.8,1585.7,1.67820001]
[1744865092430,12.93069,1585.8,1585.7,1.67820001]
[1744865093432,11.33579,1585.8,1585.7,1.67820001]
[1744865095733,8.12799,1585.8,1585.7,1.67820001]
[1744865096029,11.33579,1585.8,1585.7,1.67820001]
[1744865096632,8.12799,1585.8,1585.7,1.67820001]
[1744865096930,11.33579,1585.8,1585.7,1.67820001]
[1744865098634,8.12799,1585.8,1585.7,1.67820001]
[1744865098833,11.33579,1585.8,1585.7,1.67820001]
[1744865099034,13.02749,1585.8,1585.7,1.67820001]
[1744865100738,13.02749,1585.8,1585.7,1e-08]
[1744865101036,11.33579,1585.8,1585.7,1e-08]
[1744865101229,11.33579,1585.8,1585.7,1.69920001]
[1744865101425,13.03489,1585.8,1585.7,1.69920001]
[1744865101835,13.03489,1585.8,1585.7,2.54780001]
[1744865102131,11.33579,1585.8,1585.7,2.54780001]
[1744865102536,10.45909,1585.8,1585.7,2.54780001]
[1744865103337,20.95309016,1585.8,1585.7,2.54780001]
[1744865105837,10.45909,1585.8,1585.7,2.54780001]
[1744865106442,5.20788211,1585.9,1585.8,1.26129]
[1744865106637,5.20788211,1585.9,1585.8,5.37829]
[1744865106834,5.20788211,1585.9,1585.8,10.37829]
[1744865109734,5.20788211,1585.9,1585.8,12.02549]
[1744865109944,3.2078,1586.2,1586.1,1.26105]
[1744865110544,3.2078,1586.2,1586.1,3.00285]
[1744865111846,1.26087,1586.4,1586.2,1.26094]
[1744865112030,3.2078,1586.3,1586.2,3.00274]
[1744865119747,2.96424,1586.4,1586.3,1.26089]
[1744865119948,6.17204,1586.4,1586.3,1.26089]
[1744865120441,4.9112,1586.4,1586.2,3.0027]
[1744865120647,5.99,1586.8,1586.2,10.8608]
[1744865120841,33.58080053,1587.3,1586.7,3.2078]
[1744865121042,33.58080053,1587.3,1586.9,4.46819]
[1744865121341,33.58080053,1587.3,1587.0,2.93524]
[1744865121843,34.84090053,1587.3,1587.0,2.93524]
[1744865122049,34.84092053,1587.3,1587.0,2.93524]
[1744865122248,33.58080053,1587.3,1587.0,2.93524]
[1744865123651,34.84092053,1587.3,1587.0,2.93524]
[1744865123950,36.53052053,1587.3,1587.0,2.93524]
[1744865124147,2.94972,1587.3,1587.1,1.26025]
[1744865124347,2.94972,1587.3,1587.1,1.5972]
[1744865125252,2.94972,1587.3,1587.1,2.85744]
[1744865125253,1.6896,1587.3,1587.1,2.85744]
[1744865125650,1.6896,1587.3,1587.1,1.5972]
[1744865125651,2.94971,1587.3,1587.1,1.5972]
[1744865126351,2.94971,1587.3,1587.1,2.85745]
[1744865126650,1.6896,1587.3,1587.1,2.85745]
[1744865126843,1.6896,1587.3,1586.9,3.2078]
[1744865127043,1.26021,1587.2,1587.0,1.6336]
[1744865127238,2.94976,1587.3,1587.0,2.89391]
[1744865127751,2.97208,1587.2,1587.1,1.6336]
[1744865128253,1.7119,1587.2,1587.1,1.6336]
[1744865129645,1.7119,1587.2,1587.1,2.89386]
[1744865132654,2.97208,1587.2,1587.1,1.6336]
[1744865133056,1.7119,1587.2,1587.1,2.89386]
[1744865133360,1.7119,1587.2,1586.9,3.2078]
[1744865133551,1.7117,1587.1,1586.9,3.2078]
[1744865133854,1.7117,1587.1,1587.0,1.26034]
[1744865134051,1.7117,1587.1,1586.9,3.2078]
[1744865134257,1.26049,1586.8,1586.7,0.00948196]
[1744865134459,10.9095,1587.1,1586.7,0.00948196]
[1744865134652,1.2604,1587.0,1586.8,1.26049]
[1744865134853,1.2604,1587.0,1586.8,2.91119]
[1744865135050,1.26041,1586.9,1586.8,1.6507]
[1744865135249,1.2604,1587.0,1586.8,2.91118]
[1744865135448,7.7017,1587.1,1586.8,1.6507]
[1744865135647,1.26038,1587.0,1586.8,2.91117]
[1744865136067,7.7017,1587.1,1586.8,1.6507]
[1744865136457,8.96201,1587.1,1586.9,1.26041]
[1744865137060,1.26035,1587.0,1586.8,3.75293]
[1744865139962,1.26035,1587.0,1586.9,1.7253]
[1744865140352,2.97201,1587.1,1586.9,2.98571]
[1744865141469,1.26034,1587.0,1586.8,2.10224]
[1744865141763,1.26034,1587.0,1586.8,3.76754]
[1744865142165,2.97201,1587.1,1586.9,1.26041]
[1744865142366,2.97201,1587.1,1586.9,2.92571]
[1744865142568,1.7117,1587.1,1586.9,1.6653]
[1744865142868,1.26034,1587.0,1586.9,1.6653]
[1744865143364,2.97202,1587.1,1586.9,2.92571]
[1744865143867,1.7117,1587.1,1587.0,1.26034]
[1744865144070,1.7117,1587.1,1587.0,3.00114]
[1744865147164,2.97196,1587.1,1587.0,3.00114]
[1744865147667,4.65696,1587.1,1587.0,3.00114]
[1744865148773,4.65696,1587.1,1587.0,1.7408]
[1744865149275,4.65696,1587.1,1587.0,3.00114]
[1744865149875,3.3967,1587.1,1587.0,3.00114]
[1744865150371,4.65696,1587.1,1587.0,3.00114]
[1744865150575,3.3967,1587.1,1587.0,3.00114]
[1744865151372,3.3967,1587.1,1587.0,8.00114]
[1744865152072,3.3967,1587.1,1587.0,3.00114]
[1744865152977,2.5669,1587.1,1587.0,3.00114]
[1744865158982,3.82716,1587.1,1587.0,3.00114]
[1744865159484,2.5669,1587.1,1587.0,3.00114]
[1744865165383,3.82716,1587.1,1587.0,3.00114]
[1744865166193,2.5669,1587.1,1587.0,3.00114]
[1744865166395,1.26024,1587.2,1587.0,1.26034]
[1744865166696,4.229,1587.4,1587.1,1.26026]
[1744865166893,1.26018,1587.3,1587.1,1.26026]
[1744865167194,1.26018,1587.2,1587.1,1.26026]
[1744865167495,1.26016,1587.3,1587.1,1.26026]
[1744865167698,5.48907,1587.4,1587.2,1.26014]
[1744865168195,1.26018,1587.2,1587.1,4.468]
[1744865168497,1.26016,1587.3,1587.1,4.468]
[1744865168698,1.26018,1587.2,1587.1,4.468]
[1744865169397,1.26016,1587.3,1587.1,4.468]
[1744865170202,1.26018,1587.2,1587.1,4.468]
[1744865170502,1.26014,1587.3,1587.1,4.468]
[1744865170801,1.26014,1587.3,1587.2,1.26018]
[1744865171297,1.26014,1587.3,1587.1,4.46802]
[1744865171602,1.26014,1587.3,1587.1,1.26022]
[1744865176198,1.26014,1587.3,1587.2,1.26018]
[1744865176700,1.2601,1587.3,1587.2,1.26018]
[1744865176900,1.2601,1587.3,1587.1,1.2602]
[1744865179204,1.2601,1587.3,1587.2,1.26018]
[1744865182304,5.48909,1587.4,1587.2,1.26018]
[1744865182906,1.2601,1587.3,1587.2,1.26018]
[1744865183908,5.48908,1587.4,1587.2,1.26018]
[1744865184500,1.25978,1587.7,1587.6,1.25984]
[1744865184802,25.9506002,1587.8,1587.4,1.25996]
[1744865185007,1.25991,1587.6,1587.4,1.25996]
[1744865185995,25.8920802,1587.8,1587.3,4.46787]
[1744865186200,1.26002,1587.4,1587.3,3.2078]
[1744865186503,1.26002,1587.4,1587.3,4.4679]
[1744865188306,1.26002,1587.4,1587.3,3.2078]
[1744865189310,1.26002,1587.4,1587.2,1.26014]
[1744865189510,1.26002,1587.4,1587.3,3.2078]
[1744865190211,1.26002,1587.4,1587.3,4.4679]
[1744865190512,1.26002,1587.4,1587.3,1.2601]
[1744865190914,1.26002,1587.4,1587.3,3.2078]
[1744865191514,1.26002,1587.4,1587.3,4.4679]
[1744865191813,1.26002,1587.4,1587.3,3.2078]
[1744865193914,1.26002,1587.4,1587.2,1.26012]
[1744865194117,1.26002,1587.4,1587.3,3.2078]
[1744865194817,1.26002,1587.4,1587.2,1.26012]
[1744865195313,1.2601,1587.3,1587.2,1.26012]
[1744865196017,1.26008,1587.4,1587.2,1.26012]
[1744865196517,1.2601,1587.3,1587.2,1.26012]
[1744865197017,1.2601,1587.3,1587.1,4.46799]
[1744865197214,1.2601,1587.3,1587.2,1.26018]
[1744865197720,1.26009,1587.4,1587.2,1.26018]
[1744865198120,1.26009,1587.4,1587.3,1.2601]
[1744865198421,1.2601,1587.3,1587.2,1.26011]
[1744865198721,1.26007,1587.4,1587.1,3.2078]
[1744865199222,5.99,1587.6,1587.5,1.25994]
[1744865199519,5.99,1587.6,1587.5,4.46774]
[1744865199719,7.24986,1587.6,1587.5,3.2078]
[1744865200508,1.25994,1587.5,1587.4,1.648]
[1744865201219,1.25994,1587.5,1587.4,2.90802]
[1744865201419,7.671,1587.6,1587.4,2.90802]
[1744865201720,8.93086,1587.6,1587.5,1.648]
[1744865203620,2.94086,1587.6,1587.5,1.648]
[1744865204223,1.25986,1587.6,1587.5,1.648]
[1744865205824,10.52814,1587.7,1587.5,2.90794]
[1744865206223,5.99,1587.7,1587.6,3.01936]
[1744865206418,2.06405,1587.8,1587.6,3.01936]
[1744865206617,3.74365,1587.8,1587.7,1.7595]
[1744865207426,3.74365,1587.8,1587.7,2.5731]
[1744865208728,1.25975,1587.8,1587.7,2.5731]
[1744865209427,2.88275,1587.8,1587.7,2.5731]
[1744865213630,6.27862,1587.9,1587.7,2.5731]
[1744865213929,6.27862,1587.9,1587.8,1.7516]
[1744865214430,8.03792,1587.9,1587.8,1.7516]
[1744865215325,11.24572,1587.9,1587.8,1.7516]
[1744865215520,8.03792,1587.9,1587.8,1.7516]
[1744865219730,3.87892,1587.9,1587.8,1.7516]
[1744865219939,1.2596,1588.0,1587.8,3.01127]
[1744865220139,4.114,1588.1,1587.8,1.7516]
[1744865220140,1.25962,1587.9,1587.8,1.7516]
[1744865220437,1.25962,1587.9,1587.7,2.07333]
[1744865220940,1.25962,1587.9,1587.7,2.07331]
[1744865221142,1.2595,1588.1,1587.9,1.25959]
[1744865221330,1.2595,1588.1,1588.0,1.6739]
[1744865223637,2.11565,1588.2,1588.0,2.93344]
[1744865223839,6.5619,1588.3,1588.0,1.6739]
[1744865224040,1.25944,1588.2,1588.0,2.93342]
[1744865225244,1.25946,1588.1,1588.0,1.6739]
[1744865225742,1.25946,1588.1,1588.0,0.822]
[1744865226242,2.86556,1588.1,1588.0,0.822]
[1744865230447,1.2597,1587.8,1587.7,4.0801]
[1744865230742,1.25978,1587.7,1587.6,0.805]
[1744865231847,3.73948,1587.7,1587.6,0.805]
[1744865232445,1.25978,1587.7,1587.6,0.805]
[1744865232849,1.25975,1587.8,1587.6,2.06486]
[1744865233146,9.1978,1588.1,1587.7,3.2078]
[1744865233339,1.25964,1587.9,1587.7,5.32734]
[1744865233539,1.2596,1588.0,1587.8,1.25966]
[1744865233738,1.2596,1588.0,1587.9,0.8494]
[1744865234248,1.25951,1588.1,1587.9,2.109]
[1744865234548,1.25954,1588.0,1587.9,0.8494]
[1744865237549,1.25954,1588.0,1587.9,2.5743]
[1744865240053,1.2597,1587.8,1587.7,4.0676]
[1744865240248,1.25968,1587.9,1587.7,6.20206]
[1744865240454,1.25952,1588.1,1587.9,1.2596]
[1744865240751,1.2597,1587.8,1587.7,4.0825]
[1744865240952,1.2598,1587.7,1587.5,10.3331818]
[1744865241155,1.2598,1587.7,1587.5,4.4771718]
[1744865241353,1.2598,1587.7,1587.6,1.7392]
[1744865242261,2.9798,1587.7,1587.6,1.7392]
[1744865244451,2.86974,1587.8,1587.6,2.99906]
[1744865244652,2.86974,1587.8,1587.7,0.804]
[1744865244859,2.05714,1587.8,1587.7,2.4405]
[1744865245056,2.05714,1587.8,1587.7,3.70028]
[1744865245057,0.7974,1587.8,1587.7,3.70028]
[1744865245256,7.09267,1587.9,1587.7,3.70028]
[1744865245457,7.92027,1587.9,1587.8,1.5926]
[1744865246459,6.6606,1587.9,1587.8,2.8523]
[1744865246661,5.99,1588.0,1587.9,1.25962]
[1744865246960,5.99,1588.0,1587.9,2.85222]
[1744865247765,7.05659,1588.1,1587.9,2.85222]
[1744865247960,7.05659,1588.1,1588.0,1.5926]
[1744865248168,5.7971,1588.1,1588.0,3.69894]
[1744865248370,5.37246,1588.1,1588.0,2.4394]
[1744865248670,15.04356864,1588.2,1588.0,3.69894]
[1744865248869,15.04356864,1588.2,1588.1,1.5922]
[1744865249271,13.78412864,1588.2,1588.1,1.5922]
[1744865249465,15.04350864,1588.2,1588.1,1.5922]
[1744865249874,13.78412864,1588.2,1588.1,2.85166]
[1744865250371,11.33102864,1588.2,1588.1,2.85166]
[1744865251072,10.50342864,1588.2,1588.1,2.85166]
[1744865251371,7.86646,1588.3,1588.2,1.25938]
[1744865251372,4.9077,1588.3,1588.2,1.25938]
[1744865251669,0.7947,1588.3,1588.2,2.93928]
[1744865251863,2.054,1588.3,1588.2,1.6799]
[1744865252171,2.054,1588.3,1588.2,2.93928]
[1744865252370,0.7947,1588.3,1588.2,2.93928]
[1744865252872,2.054,1588.3,1588.2,2.93928]
[1744865253171,0.7947,1588.3,1588.2,2.93928]
[1744865253373,5.99,1588.4,1588.3,1.2593]
[1744865253573,16.67031864,1588.5,1588.3,2.5175]
[1744865253872,4.9077,1588.5,1588.4,1.25922]
[1744865254064,6.5414,1588.5,1588.4,2.93912]
[1744865254266,4.46692,1588.6,1588.4,2.93908]
[1744865254267,1.25909,1588.6,1588.4,2.93908]
[1744865254471,1.25909,1588.6,1588.5,1.6048]
[1744865254774,2.98639,1588.6,1588.5,1.6048]
[1744865255166,12.22692864,1588.7,1588.3,4.0548518]
[1744865255370,4.46702,1588.4,1588.3,0.0094518]
[1744865255974,5.31462,1588.4,1588.3,0.0094518]
[1744865256176,3.83412,1588.4,1588.3,0.0094518]
[1744865258173,3.83412,1588.4,1588.3,1.7150518]
[1744865258474,2.5749,1588.4,1588.3,2.9743518]
[1744865258673,0.8476,1588.4,1588.3,2.9743518]
[1744865258874,4.112,1588.5,1588.4,1.25922]
[1744865259074,3.78213,1588.6,1588.4,3.83802]
[1744865259374,3.78213,1588.6,1588.4,2.5788]
[1744865259677,3.78213,1588.6,1588.5,1.7056]
[1744865260182,0.8716,1588.6,1588.5,1.7056]
[1744865260474,0.8716,1588.6,1588.5,2.96475]
[1744865260673,2.13067,1588.6,1588.5,1.7056]
[1744865261978,1.25898,1588.8,1588.5,6.17248]
[1744865262275,3.75458,1588.8,1588.5,6.99268]
[1744865262474,3.75458,1588.8,1588.6,1.6914]
[1744865262674,1.25899,1588.7,1588.6,1.6914]
[1744865263175,3.75456,1588.8,1588.6,2.95047]
[1744865263478,1.25899,1588.7,1588.6,1.6914]
[1744865264180,2.12113,1588.8,1588.6,2.9504]
[1744865264475,2.12113,1588.8,1588.7,0.8458]
[1744865264675,2.12113,1588.8,1588.7,2.5951]
[1744865264880,3.72633,1588.8,1588.7,1.7493]
[1744865265880,1.25899,1588.7,1588.6,0.8458]
[1744865266177,3.66159,1588.7,1588.6,0.8458]
[1744865266375,3.66159,1588.7,1588.6,2.4698]
[1744865267579,2.86419,1588.7,1588.6,2.4698]
[1744865268373,2.12115,1588.8,1588.6,3.72884]
[1744865268680,2.12115,1588.8,1588.7,1.624]
[1744865272676,0.8622,1588.8,1588.7,2.88299]
[1744865272884,4.111,1589.0,1588.7,2.88299]
[1744865273071,4.9354,1589.0,1588.8,1.6077]
[1744865273274,1.25883,1588.9,1588.8,1.6077]
[1744865273470,2.96473,1588.9,1588.8,1.6077]
[1744865273875,1.7059,1588.9,1588.6,0.8458]
[1744865274077,1.25899,1588.7,1588.6,2.4535]
[1744865274479,2.08339,1588.7,1588.6,2.4535]
[1744865275988,3.76989,1588.7,1588.6,2.4535]
[1744865276581,2.08339,1588.7,1588.6,2.4535]
[1744865276983,2.08339,1588.7,1588.6,3.71257]
[1744865277290,1.25899,1588.7,1588.6,3.71257]
[1744865277691,2.92066,1588.8,1588.6,3.71257]
[1744865277892,2.92066,1588.8,1588.7,1.7302]
[1744865278291,2.06716,1588.8,1588.7,1.7302]
[1744865281392,0.8217,1589.0,1588.8,1.25889]
[1744865281589,2.93005,1589.0,1588.9,1.7055]
[1744865281792,1.25899,1588.7,1588.6,0.8458]
[1744865281991,1.25899,1588.7,1588.6,2.4607]
[1744865282887,1.25895,1588.8,1588.6,2.4607]
[1744865283092,1.25895,1588.8,1588.7,1.6149]
[1744865283293,1.6713,1589.0,1588.7,1.6149]
[1744865283794,1.6713,1589.0,1588.7,2.87387]
[1744865284094,1.25887,1588.9,1588.8,1.6149]
[1744865285898,1.25899,1588.7,1588.6,0.8458]
[1744865286086,1.25899,1588.7,1588.6,2.5243]
[1744865286394,1.25907,1588.6,1588.5,3.2078]
[1744865286895,1.25904,1588.7,1588.5,4.46695]
[1744865287085,1.25904,1588.7,1588.6,1.6785]
[1744865288788,1.25907,1588.6,1588.5,3.2078]
[1744865289189,1.25907,1588.6,1588.5,4.8017]
[1744865290494,1.25907,1588.6,1588.5,3.2078]
[1744865290702,1.25922,1588.4,1588.3,0.0094518]
[1744865291003,8.58002,1588.4,1588.3,0.0094518]
[1744865291186,13.58002,1588.4,1588.3,0.0094518]
[1744865291391,1.25954,1588.0,1587.9,5.7097]
[1744865292697,1.25962,1587.9,1587.8,0.0094518]
[1744865292905,0.82315124,1588.1,1587.8,1.6339518]
[1744865293199,1.25962,1587.9,1587.8,0.0094518]
[1744865294399,1.25959,1588.0,1587.8,0.0094518]
[1744865294600,0.82315124,1588.1,1587.9,1.25958]
[1744865294800,0.82315124,1588.1,1588.0,1.7303]
[1744865295008,0.82315124,1588.1,1588.0,2.98984]
[1744865295201,0.00935124,1588.1,1588.0,2.98984]
[1744865297499,0.00935124,1588.1,1588.0,3.81394]
[1744865301201,0.00935124,1588.1,1588.0,1.25954]
[1744865301407,0.00935124,1588.1,1588.0,3.72264]
[1744865303807,1.64785124,1588.1,1588.0,3.72264]
[1744865305008,1.64785124,1588.1,1587.9,3.2078]
[1744865305212,1.25962,1587.9,1587.8,1.5985518]
[1744865305412,1.25962,1587.9,1587.8,0.0094518]
[1744865305601,3.74442,1587.9,1587.8,0.0094518]
[1744865308015,8.74442,1587.9,1587.8,0.0094518]
[1744865308816,18.89142,1587.9,1587.8,0.0094518]
[1744865311021,13.89142,1587.9,1587.8,0.0094518]
[1744865313616,18.89142,1587.9,1587.8,0.0094518]
[1744865315813,13.89142,1587.9,1587.8,0.0094518]
[1744865318123,3.74442,1587.9,1587.8,0.0094518]
[1744865318523,2.10592,1587.9,1587.8,1.7404518]
[1744865319025,3.15807124,1588.1,1587.9,1.25956]
[1744865319026,1.26885124,1588.1,1587.9,1.25956]
[1744865319330,1.26885124,1588.1,1588.0,2.5519]
[1744865321427,1.25962,1587.9,1587.8,0.0094518]
[1744865321919,1.25962,1587.9,1587.8,1.6158518]
[1744865323524,3.8632,1588.0,1587.8,2.8755418]
[1744865323728,1.25962,1587.9,1587.8,2.4166518]
[1744865324029,1.25957,1588.0,1587.8,2.0699318]
[1744865326335,1.25957,1588.0,1587.8,0.8102518]
[1744865326633,1.25957,1588.0,1587.9,3.2078]
[1744865327329,1.25957,1588.0,1587.9,8.2078]
[1744865327634,0.00935124,1588.1,1587.9,8.2078]
[1744865327829,1.26882124,1588.1,1588.0,0.8441]
[1744865328026,0.00935124,1588.1,1588.0,2.10364]
[1744865328225,0.00935124,1588.1,1588.0,0.8441]
[1744865328226,1.26881124,1588.1,1588.0,0.8441]
[1744865329832,0.00935124,1588.1,1588.0,2.10364]
[1744865332933,0.00935124,1588.1,1588.0,7.10364]
[1744865333934,0.00935124,1588.1,1588.0,2.10364]
[1744865334936,0.00935124,1588.1,1588.0,6.26064]
[1744865338039,0.00935124,1588.1,1588.0,7.95554]
[1744865341542,0.00935124,1588.1,1588.0,12.95554]
[1744865342944,0.00935124,1588.1,1588.0,7.95554]
[1744865343548,2.1224,1588.5,1588.4,1.25922]
[1744865344037,2.1224,1588.5,1588.3,1.25925]
[1744865344233,3.8172,1588.5,1588.4,1.25922]
[1744865345044,3.8172,1588.5,1588.4,2.89142]
[1744865345445,3.8172,1588.5,1588.4,1.6322]
[1744865346446,2.558,1588.5,1588.4,2.89142]
[1744865346650,3.81715,1588.5,1588.4,2.89142]
[1744865347948,2.558,1588.5,1588.4,2.89142]
[1744865349646,3.81715,1588.5,1588.4,2.89142]
[1744865350452,3.81715,1588.5,1588.4,1.6322]
[1744865350746,3.81721,1588.5,1588.3,1.25926]
[1744865350947,1.717,1588.4,1588.3,1.25926]
[1744865351243,1.2593,1588.3,1588.2,6.89156]
[1744865351450,0.8201,1588.3,1588.2,6.89158]
[1744865352146,2.12235,1588.5,1588.4,1.25922]
[1744865352549,3.87345,1588.5,1588.4,1.25922]
[1744865352752,2.6143,1588.5,1588.4,1.25922]
[1744865352953,3.87345,1588.5,1588.3,1.6991]
[1744865353248,3.87345,1588.5,1588.4,1.25922]
[1744865355647,0.8305,1588.6,1588.4,1.25922]
[1744865355648,0.8305,1588.6,1588.5,1.25915]
[1744865355949,0.8305,1588.6,1588.5,2.95265]
[1744865356151,0.8305,1588.6,1588.5,3.82465]
[1744865357665,2.4876,1588.6,1588.5,3.82465]
[1744865359255,0.8305,1588.6,1588.5,3.82465]
[1744865360059,3.72137,1588.6,1588.5,1.6935]
[1744865360355,1.25915,1588.5,1588.4,3.2078]
[1744865360559,1.2593,1588.3,1588.2,5.856]
[1744865361153,3.7097,1588.3,1588.2,5.856]
[1744865365071,3.7097,1588.3,1588.1,6.14606]
[1744865365369,2.92948,1588.2,1588.1,4.8866]
[1744865366065,2.92948,1588.2,1588.1,3.2078]
[1744865366269,1.25962,1587.9,1587.8,0.0094518]
[1744865366663,6.25962,1587.9,1587.8,0.0094518]
[1744865366969,7.92972,1587.9,1587.8,0.0094518]
[1744865367171,2.92972,1587.9,1587.8,0.0094518]
[1744865367365,1.6701,1587.9,1587.8,0.0094518]
[1744865367566,1.6701,1587.9,1587.8,1.6824518]
[1744865368071,2.92972,1587.9,1587.8,1.6824518]
[1744865370177,14.64542864,1588.4,1587.8,6.6824518]
[1744865370471,2.5117,1588.3,1587.9,4.0125]
[1744865370672,3.77103,1588.3,1588.1,1.25943]
[1744865370861,3.77103,1588.3,1588.2,1.6668]
[1744865375978,1.25941,1588.2,1588.0,1.25948]
[1744865376179,2.10887,1588.3,1588.1,1.25946]
[1744865376379,3.84067,1588.3,1588.2,1.6028]
[1744865380275,22.84909864,1588.6,1588.3,3.14827]
[1744865380276,10.50342864,1588.6,1588.3,3.14827]
[1744865380576,12.59200021,1588.8,1588.7,1.25899]
[1744865380780,3.00812,1589.2,1588.9,1.25883]
[1744865380968,1.7495,1589.2,1588.9,4.46663]
[1744865381374,7.3508,1589.4,1588.9,6.16503]
[1744865381574,10.35876,1589.4,1588.9,6.16503]
[1744865381784,7.15096,1589.4,1588.9,6.16503]
[1744865381973,0.8816,1589.5,1588.9,11.16503]
[1744865382174,1.2585,1589.4,1589.1,1.25862]
[1744865382483,1.2585,1589.4,1589.2,6.16479]
[1744865382681,2.8876,1589.4,1589.2,6.16479]
[1744865382983,1.6291,1589.4,1589.3,1.25851]
[1744865383182,0.8816,1589.5,1589.3,1.25845]
[1744865383386,1.25844,1589.4,1589.2,6.16475]
[1744865383773,2.88754,1589.4,1589.2,6.16475]
[1744865383984,2.88754,1589.4,1589.2,4.9062]
[1744865384284,17.89881484,1589.8,1589.2,4.9062]
[1744865384481,1.25835,1589.5,1589.4,3.2078]
[1744865384683,3.2078,1589.6,1589.2,4.9062]
[1744865384890,1.25851,1589.3,1589.2,4.9062]
[1744865385188,4.8369,1589.4,1588.9,3.2078]
[1744865385383,2.484,1589.2,1588.9,6.11679]
[1744865385582,0.8549,1589.2,1589.0,1.25867]
[1744865385781,0.8549,1589.2,1589.1,2.91727]
[1744865386179,2.11349,1589.2,1589.1,1.6586]
[1744865386386,3.75279,1589.2,1589.1,1.6586]
[1744865386586,2.4942,1589.2,1589.1,1.6586]
[1744865386787,3.75279,1589.2,1589.1,1.6586]
[1744865386990,2.4942,1589.2,1589.1,1.6586]
[1744865387890,2.4942,1589.2,1589.1,2.91727]
[1744865388092,2.4942,1589.2,1589.1,1.6586]
[1744865388289,3.75279,1589.2,1589.1,1.6586]
[1744865388791,1.25875,1589.0,1588.9,3.2078]
[1744865389090,2.90433,1589.1,1588.9,6.22973]
[1744865389289,2.90433,1589.1,1589.0,1.7631]
[1744865390290,1.25875,1589.0,1588.9,3.2078]
[1744865390790,0.8549,1589.2,1588.9,4.9709]
[1744865391088,3.75916,1589.2,1589.0,3.02185]
[1744865391289,3.75916,1589.2,1589.1,1.7631]
[1744865392290,1.25871,1589.1,1588.9,4.46659]
[1744865392478,2.95181,1589.1,1588.9,6.15069]
[1744865392683,2.11353,1589.2,1589.0,2.94285]
[1744865392883,2.11353,1589.2,1589.1,1.6841]
[1744865393587,2.11353,1589.2,1589.1,2.94277]
[1744865393784,2.11353,1589.2,1589.1,1.6841]
[1744865393979,3.80663,1589.2,1589.1,1.6841]
[1744865394893,3.80663,1589.2,1589.1,2.94277]
[1744865395695,3.80663,1589.2,1589.1,1.6841]
[1744865397296,2.548,1589.2,1589.1,2.94277]
[1744865397488,1.25855,1589.3,1589.1,6.15057]
[1744865397684,1.25855,1589.3,1589.2,1.6222]
[1744865398095,2.99925,1589.3,1589.2,1.6222]
[1744865401292,2.12155,1589.4,1589.2,2.88079]
[1744865401491,3.78545,1589.4,1589.3,3.2078]
[1744865401692,3.78545,1589.4,1589.3,4.8862]
[1744865401892,1.25845,1589.4,1589.3,6.14471]
[1744865402301,2.9223,1589.5,1589.4,1.25843]
[1744865402597,2.9223,1589.5,1589.4,1.6784]
[1744865404501,2.9223,1589.5,1589.3,4.46626]
[1744865404803,1.6712,1589.4,1589.3,6.08506]
[1744865405201,2.92963,1589.4,1589.3,6.08506]
[1744865406305,1.25842,1589.5,1589.3,6.08506]
[1744865406494,1.25842,1589.5,1589.4,1.6188]
[1744865406694,2.92962,1589.5,1589.4,1.6188]
[1744865409000,1.25843,1589.4,1589.3,3.2078]
[1744865409305,1.25859,1589.2,1589.1,9.0638]
[1744865409897,2.85189,1589.2,1589.1,9.0638]
[1744865410709,2.85189,1589.2,1589.1,10.7491]
[1744865411102,1.25806,1589.9,1589.7,1.25817]
[1744865411399,1.25691,1591.4,1590.6,3.1436]
[1744865411700,1.7361,1591.3,1591.1,3.2078]
[1744865412103,4.551,1591.5,1591.1,3.7630963]
[1744865412302,1.7361,1591.3,1591.1,3.2078]
[1744865412707,5.80772,1591.6,1591.1,6.70296188]
[1744865412905,1.25678,1591.5,1591.1,6.70296188]
[1744865413203,2.99285,1591.6,1591.1,6.15019]
[1744865413503,4.551,1591.5,1591.2,1.257]
[1744865413710,6.1446,1591.5,1591.3,3.2078]
[1744865413906,7.40139,1591.5,1591.3,3.2078]
[1744865414102,6.1446,1591.5,1591.3,3.2078]
[1744865414405,1.25685,1591.4,1591.3,3.2078]
[1744865414613,7.39945,1591.4,1591.3,3.2078]
[1744865414799,2.85045,1591.4,1591.3,3.2078]
[1744865415005,6.1426,1591.4,1591.3,3.2078]
[1744865415306,14.3504,1591.4,1590.7,3.2172518]
[1744865415512,1.25713,1591.1,1590.8,1.6337]
[1744865415706,5.80613,1591.1,1590.9,3.2078]
[1744865416108,4.549,1591.1,1590.9,3.2078]
[1744865416412,4.549,1591.1,1591.0,1.25717]
[1744865416605,4.549,1591.2,1591.0,1.6697]
[1744865416910,1.5876,1591.2,1591.1,3.2078]
[1744865417111,6.1356,1591.2,1591.1,3.2078]
[1744865417703,7.39261,1591.2,1591.1,3.2078]
[1744865419111,11.1356,1591.2,1590.8,3.2078]
[1744865419313,6.1356,1591.2,1591.1,3.2078]
[1744865419615,1.5876,1591.2,1591.1,3.2078]
[1744865419810,1.5876,1591.2,1591.1,4.8126]
[1744865420407,1.25694,1591.3,1591.1,4.8126]
[1744865420600,2.85814,1591.3,1591.1,4.8126]
[1744865420900,7.40514,1591.3,1591.1,4.8126]